[Event "44th Chess Olympiad Open 2022"]
[Site "Chennai"]
[Date "2022.08.07"]
[Round "9.12"]
[White "Almeida Quintana, Omar"]
[Black "Maurizzi, Marc`Andria"]
[Result "1/2-1/2"]
[WhiteElo "2523"]
[BlackElo "2506"]
[Annotator "TA"]
[PlyCount "75"]
[EventDate "2022.??.??"]
[TimeControl "60"]

{[%evp 9,75,8,16,0,-13,-17,-13,-24,-24,-35,-29,-38,-38,-30,-7,-23,-20,-62,-52,
-37,-33,-49,3,0,14,0,3,5,57,-13,-16,-23,0,0,0,-6,-6,-14,-12,-77,-77,-81,-31,
-43,-50,-34,-51,-68,-47,-68,-66,-55,-47,-69,-69,-179,-194,-163,-172,-230,0,0,0,
0,0,0,0,0]} 1. d4 {[%emt 0:00:05]} Nf6 {[%emt 0:00:01]} 2. Nf3 {[%emt 0:00:14]}
c5 {[%emt 0:00:01]} 3. d5 {[%emt 0:00:09]} b5 {[%emt 0:00:02]} 4. a4 {[%emt 0:
00:00]} b4 {[%emt 0:00:21]} 5. Bg5 {[%emt 0:01:57]} g6 {[%emt 0:00:40]} 6. Bxf6
{[%emt 0:01:41] A43: Schmid Benoni.} exf6 {[%emt 0:00:17]} 7. e4 {[%emt 0:00:
00]} Bg7 {[%emt 0:00:58] [#]} 8. c3 $146 {[%emt 0:04:46]} ({Predecessor:} 8.
Nbd2 O-O 9. Nc4 d6 10. Bd3 Ba6 11. Nfd2 f5 12. exf5 Re8+ 13. Kf1 Qf6 14. Qf3
Bxc4 15. Nxc4 {½-½ (44) Manukyan,S (2253)-Harika,D (2517) Chess.com INT 2022}
) 8... O-O {[%emt 0:05:37] ...f5 is the strong threat.} 9. Bd3 {[%emt 0:02:04]}
f5 {[%emt 0:11:45]} 10. exf5 {[%emt 0:16:39]} Re8+ {[%emt 0:00:09]} 11. Kf1 {
[%emt 0:00:02]} d6 {[%emt 0:04:34]} 12. fxg6 {[%emt 0:10:32]} hxg6 {[%emt 0:00:
00]} 13. h4 {[%emt 0:15:36]} Bg4 {[%emt 0:05:32]} 14. Qc2 {[%emt 0:00:21]} Bxf3
{[%emt 0:19:43]} 15. gxf3 {[%emt 0:02:41]} Qf6 {[%emt 0:00:00]} (15... Qe7 16.
h5 $16) (15... Re5 $1 $15) 16. Kg2 $11 {[%emt 0:04:20]} Nd7 {[%emt 0:01:57]}
17. Bb5 $1 {[%emt 0:04:41]} Ne5 {[%emt 0:06:13]} 18. Nd2 {[%emt 0:03:17]} Re7 {
[%emt 0:03:28]} ({Black should play} 18... bxc3 $11 19. Qxc3 Reb8) 19. Rh3 {
[%emt 0:04:41]} (19. cxb4 $14 cxb4 20. Rad1) 19... bxc3 {[%emt 0:01:47]} 20.
bxc3 {[%emt 0:00:03]} c4 {[%emt 0:02:33]} (20... Qf4 {looks sharper.} 21. Re1
f5 22. Nf1 Bf6) 21. Nxc4 {[%emt 0:05:22]} Nxc4 {[%emt 0:00:40]} 22. Bxc4 {
[%emt 0:00:02]} Rc8 {[%emt 0:00:41][%cal Ya8c8,Yc8c3,Yc3c5]} 23. Bb5 {[%emt 0:
01:48]} Rxc3 {[%emt 0:00:25]} 24. Qd1 {[%emt 0:00:03]} (24. Qd2 $11 {keeps the
balance.}) 24... Bh6 $17 {[%emt 0:05:49] Black has strong compensation.} 25.
Rb1 {[%emt 0:02:02]} Qf5 {[%emt 0:01:45]} (25... Bf4 $17) 26. Rh1 {[%emt 0:04:
10]} Re5 {[%emt 0:02:43]} 27. Rb3 {[%emt 0:01:07]} Rc5 {[%emt 0:05:39]} 28. Qd3
{[%emt 0:02:39]} Qf6 {[%emt 0:00:41]} 29. Bc6 {[%emt 0:00:00]} a5 {[%emt 0:08:
05]} 30. Rb5 {[%emt 0:01:53]} Rc1 {[%emt 0:00:28][%cal Ye5g5]} 31. Rb8+ {
[%emt 0:03:42][%cal Yb5b8,Yb8e8,Ye8e4]} Kh7 {[%emt 0:01:21][%cal Ye5g5] ( -> ..
.Rg5+!)} 32. Rxc1 {[%emt 0:00:14]} ({White has to play} 32. Rb1 $1 $15 Rg5+ 33.
hxg5 Qxg5+ 34. Kh3 Qh5+ 35. Kg3 Qxh1 36. Rxc1 Qxc1 37. Kg2) 32... Bxc1 $19 {
[%emt 0:00:02]} 33. Re8 {[%emt 0:00:07]} Rh5 {[%emt 0:00:13]} (33... Qxh4 34.
Rxe5 dxe5 35. d6 $11 (35. Kf1 Bb2 $11)) 34. Qe4 {[%emt 0:03:05] [#]} (34. Re4
$142) 34... Rf5 $2 {[%emt 0:11:00]} ({Inferior is} 34... Rxh4 35. Qe7 Bb2 36.
Qxf6 Bxf6 37. Ra8 $15) ({Worse is} 34... Qxh4 35. Qxh4 Rxh4 36. Re7 $15) ({
Black should try} 34... Bg5 $1 $19 35. Rb8 (35. hxg5 $2 Qxg5+ 36. Qg4 Qc1 $19)
35... Bxh4) 35. Bd7 $36 {[%emt 0:00:34] White fights for an advantage. The
position is equal.} Rf4 {[%emt 0:00:32]} 36. Qe7 {[%emt 0:00:02]} Rxf3 {
[%emt 0:00:26]} 37. Qxf6 {[%emt 0:00:05]} Rxf6 {[%emt 0:00:01]} 38. Re4 {
[%emt 0:00:19] Weighted Error Value: White=0.18 (very precise) /Black=0.17 
(very precise)} 1/2-1/2

[Event "44th Chess Olympiad Open 2022"]
[Site "Chennai"]
[Date "2022.08.07"]
[Round "9.13"]
[White "Navara, David"]
[Black "Henriquez Villagra, Cristobal"]
[Result "1-0"]
[WhiteElo "2688"]
[BlackElo "2620"]
[Annotator "TA"]
[PlyCount "85"]
[EventDate "2022.??.??"]
[TimeControl "60"]

{[%evp 18,85,23,19,45,16,14,1,17,5,5,0,1,12,27,27,24,0,0,0,0,0,-7,0,0,0,0,0,-8,
-30,0,0,0,0,0,-6,0,-6,12,12,12,12,12,17,58,34,33,24,64,50,66,69,112,109,457,
410,821,504,4133,2161,29993,29994,29994,29995,29995,29996,29996,29997,29997,
-247]} 1. e4 {[%emt 0:00:01]} c5 {[%emt 0:00:22]} 2. Nf3 {[%emt 0:00:06]} d6 {
[%emt 0:00:06]} 3. d4 {[%emt 0:00:04]} cxd4 {[%emt 0:00:06]} 4. Nxd4 {[%emt 0:
00:00]} Nf6 {[%emt 0:00:06]} 5. Nc3 {[%emt 0:00:03]} Nc6 {[%emt 0:00:06]} 6.
Bg5 {[%emt 0:00:06]} e6 {[%emt 0:00:05]} 7. Qd2 {[%emt 0:00:05]} a6 {[%emt 0:
00:00]} 8. O-O-O {[%emt 0:00:07]} Bd7 {[%emt 0:01:04]} 9. f3 {[%emt 0:00:14]}
Nxd4 {[%emt 0:01:56]} 10. Qxd4 {[%emt 0:00:09]} Be7 {[%emt 0:00:50] B67:
Sicilian: Richter-Rauzer: 7...a6 8 0-0-0 Bd7, lines without 9 f4 Be7.} 11. Be3
{[%emt 0:05:41]} h5 {[%emt 0:11:07] Prevents g4.} 12. Kb1 {[%emt 0:10:05]} Rc8
{[%emt 0:13:37] [#] The position is equal.} 13. Be2 $146 {[%emt 0:06:54]} ({
Predecessor:} 13. h4 Bc6 14. Be2 O-O 15. g4 hxg4 16. h5 gxf3 17. Bxf3 Nh7 18.
h6 e5 19. Qd2 {½-½ (29) Schirmer,M-Wosch,A (2552) IECC email 2014}) 13... Qc7
{[%emt 0:07:50]} 14. Bg5 {[%emt 0:07:21]} b5 {[%emt 0:05:43]} 15. a3 {[%emt 0:
00:00]} Qc5 {[%emt 0:12:02]} 16. h4 {[%emt 0:01:23]} Bc6 {[%emt 0:05:23]} 17.
Rd2 {[%emt 0:06:22]} Qxd4 {[%emt 0:08:56]} 18. Rxd4 {[%emt 0:00:11]} d5 {
[%emt 0:00:49]} 19. a4 {[%emt 0:14:22][%cal Ra4b5]} Bc5 {[%emt 0:14:55]} 20.
Rdd1 {[%emt 0:00:30][%cal Ra4b5]} dxe4 {[%emt 0:01:45]} 21. axb5 {[%emt 0:00:
00]} axb5 {[%emt 0:00:07]} 22. Bxb5 {[%emt 0:01:27]} exf3 {[%emt 0:01:18]} 23.
gxf3 {[%emt 0:00:53]} Bb4 {[%emt 0:04:02]} 24. Rd3 {[%emt 0:06:32]} Bxb5 {
[%emt 0:01:21]} 25. Nxb5 {[%emt 0:00:07]} Nd5 {[%emt 0:01:03]} 26. c3 {[%emt 0:
00:00]} Be7 {[%emt 0:00:33]} 27. Re1 {[%emt 0:06:11][%cal Yd3d5] Black must
now prevent Rxd5!} Bxg5 {[%emt 0:01:24]} 28. Nd6+ {[%emt 0:00:11]} Kd7 {
[%emt 0:00:11]} 29. Nxc8 {[%emt 0:00:09] aiming for Nb6+.} Bxh4 {[%emt 0:00:11]
} 30. Re4 {[%emt 0:01:19] And now Nb6+ would win.} Kxc8 {[%emt 0:00:08]} 31.
Rxh4 $11 {[%emt 0:00:09] Endgame KRR-KRN} g5 {[%emt 0:00:03]} 32. Ra4 {[%emt 0:
04:03]} Rh7 {[%emt 0:03:02]} 33. c4 {[%emt 0:01:13]} Nc7 {[%emt 0:00:00]} 34.
Kc2 {[%emt 0:05:45] White is more active.} f5 {[%emt 0:00:50]} 35. b4 {[%emt 0:
01:27]} h4 $2 {[%emt 0:00:25] [#] Black cannot hold the game after this.} (
35... g4 $16) 36. b5 $1 $18 {[%emt 0:00:04] Ra7 is the strong threat.} h3 {
[%emt 0:00:59]} (36... Kb7 $142 37. Rda3 Kb6) 37. b6 {[%emt 0:00:17] Intending
Ra7 and mate.} h2 {[%emt 0:03:39] [#]} (37... Kb7 $142 38. bxc7 Rxc7 39. Rb3+
Kc8 40. Ra8+ Kd7) 38. Ra7 $1 {[%emt 0:00:11] White wants to mate with b7+.}
h1=Q {[%emt 0:00:31]} 39. b7+ {[%emt 0:00:07] White mates.} Kb8 {[%emt 0:00:02]
} 40. Rd8+ {[%emt 0:00:06]} Kxa7 {[%emt 0:00:04]} 41. b8=Q+ {[%emt 0:30:06]}
Ka6 {[%emt 0:30:03]} 42. Rd6+ {[%emt 0:00:07]} Ka5 {[%emt 0:00:04]} 43. Qb6+ {
[%emt 0:00:09] Weighted Error Value: White=0.14 (very precise) /Black=0.47.
Loss on time!?} 1-0

[Event "44th Chess Olympiad Open 2022"]
[Site "Chennai"]
[Date "2022.08.07"]
[Round "9.13"]
[White "Hracek, Zbynek"]
[Black "Salinas Herrera, Pablo"]
[Result "1/2-1/2"]
[WhiteElo "2555"]
[BlackElo "2526"]
[Annotator "TA"]
[PlyCount "82"]
[EventDate "2022.??.??"]
[TimeControl "60"]

{[%evp 18,82,35,40,27,29,38,34,31,35,39,37,32,31,37,41,46,33,55,52,51,33,44,35,
55,56,54,34,33,33,42,42,38,34,37,35,41,28,45,15,51,41,17,27,39,42,39,39,47,45,
39,30,47,61,58,36,23,10,8,13,13,8,4,14,6,2,79]} 1. e4 {[%emt 0:00:03]} e5 {
[%emt 0:00:15]} 2. Nf3 {[%emt 0:00:08]} Nc6 {[%emt 0:00:04]} 3. Bb5 {[%emt 0:
00:00]} a6 {[%emt 0:00:08]} 4. Ba4 {[%emt 0:00:06]} Nf6 {[%emt 0:00:04]} 5. O-O
{[%emt 0:00:10]} d6 {[%emt 0:00:03]} 6. Re1 {[%emt 0:01:19]} Bd7 {[%emt 0:00:
00]} 7. c3 {[%emt 0:00:22]} g6 {[%emt 0:00:05]} 8. d4 {[%emt 0:00:17]} Bg7 {
[%emt 0:00:05]} 9. Nbd2 {[%emt 0:01:11][%cal Yb1d2,Yd2f1,Yf1g3]} O-O {[%emt 0:
00:32]} 10. h3 {[%emt 0:00:16]} Re8 {[%emt 0:00:13] C60: Ruy Lopez: Unusual
Black 3rd moves and 3...g6.} 11. Bc2 {[%emt 0:00:45]} a5 {[%emt 0:00:00]} 12.
Nf1 {[%emt 0:00:37]} a4 {[%emt 0:00:09] White is slightly better.} 13. Ng3 {
[%emt 0:00:33]} b5 {[%emt 0:00:09]} 14. Be3 {[%emt 0:01:11]} Qe7 {[%emt 0:00:
00]} 15. Qd2 {[%emt 0:02:46] [#]} Na5 $146 {[%emt 0:04:54]} ({Predecessor:} 
15... Reb8 16. d5 Na5 17. b3 c5 18. dxc6 Bxc6 19. Rad1 Ne8 20. Bh6 Bd7 21. Bg5
Qf8 {½-½ (87) Caruana,F (2792)-Sjugirov,S (2680) Chess.com INT 2022}) 16. b3
{[%emt 0:00:14] Against Nc4} c5 {[%emt 0:01:50]} 17. Bg5 {[%emt 0:03:32]} cxd4
{[%emt 0:38:45]} 18. cxd4 {[%emt 0:00:03]} Rec8 {[%emt 0:00:11]} 19. Rab1 {
[%emt 0:03:21]} axb3 {[%emt 0:23:48]} 20. axb3 {[%emt 0:00:07]} b4 {[%emt 0:00:
00]} 21. d5 {[%emt 0:09:47]} Qd8 {[%emt 0:00:07]} 22. Bd3 {[%emt 0:05:30]} Rc3
{[%emt 0:00:16]} 23. Qd1 {[%emt 0:03:26]} Qb8 {[%emt 0:05:12]} 24. Bf1 {
[%emt 0:05:49]} Rc8 {[%emt 0:07:34]} 25. Bd2 {[%emt 0:11:45]} Qb6 {[%emt 0:00:
00]} 26. Be3 {[%emt 0:01:43]} Qb8 {[%emt 0:00:10]} 27. Nd2 {[%emt 0:09:02]} Be8
{[%emt 0:00:11]} 28. Nc4 {[%emt 0:05:08]} Nd7 {[%emt 0:00:04] Inhibits Nb6.}
29. Ra1 {[%emt 0:03:00]} Nxc4 {[%emt 0:00:05]} 30. Bxc4 {[%emt 0:04:05]} Nc5 {
[%emt 0:00:44]} 31. Qd2 {[%emt 0:02:27]} Qb6 {[%emt 0:02:56]} 32. Ra2 {[%emt 0:
00:00]} Ra5 {[%emt 0:00:34]} 33. Rea1 {[%emt 0:01:29]} Rca8 {[%emt 0:00:04]}
34. Ne2 {[%emt 0:03:41]} (34. Kh2 {looks sharper.} Bf8 35. Ne2 Rxa2 36. Rxa2
Rxa2 37. Qxa2 Bb5 38. Qc2) 34... f5 {[%emt 0:02:15]} 35. Rxa5 {[%emt 0:13:53]}
(35. exf5 {with more complications.} gxf5 36. Rxa5 Rxa5 37. Rxa5 Qxa5 38. Qe1)
35... Rxa5 {[%emt 0:00:17]} 36. Rxa5 {[%emt 0:00:02]} (36. Qe1 {is interesting.
} f4 37. Rxa5 Qxa5 38. Bd2) 36... Qxa5 {[%emt 0:00:05]} 37. Bxc5 {[%emt 0:00:
00]} Qxc5 {[%emt 0:00:06] The position is equal.} 38. exf5 {[%emt 0:00:15]}
gxf5 {[%emt 0:00:21]} 39. Ng3 {[%emt 0:00:11]} Bg6 {[%emt 0:00:25]} 40. Qg5 {
[%emt 0:00:26]} Qc8 {[%emt 0:00:07]} 41. h4 {[%emt 0:15:12] [#] Hoping for h5.}
Qf8 {[%emt 0:00:09] Weighted Error Value: White=0.04 (flawless) /Black=0.06 
(flawless)} (41... f4 $11 {keeps the balance.} 42. h5 fxg3 43. hxg6 gxf2+ 44.
Kf1 (44. Kxf2 h6 $11) 44... h6) 1/2-1/2

[Event "44th Chess Olympiad Open 2022"]
[Site "Chennai"]
[Date "2022.08.07"]
[Round "9.13"]
[White "Morovic Fernandez, Ivan"]
[Black "Nguyen, Thai Dai Van"]
[Result "0-1"]
[WhiteElo "2489"]
[BlackElo "2629"]
[Annotator "TA"]
[PlyCount "86"]
[EventDate "2022.??.??"]
[TimeControl "60"]

{[%evp 9,86,-4,0,-4,8,6,3,1,0,2,7,8,11,2,12,2,6,2,6,0,24,14,20,14,30,27,45,22,
16,5,10,8,8,-17,-17,-26,-22,-31,-19,-18,-14,-27,-21,-29,-16,-23,-14,-14,-30,
-27,-18,-74,-60,-60,-53,-147,-145,-152,-111,-135,-147,-162,-158,-131,-118,-148,
-147,-284,-268,-360,-360,-707,-564,-4133,-4133,-2000,-1311,-691,-564]} 1. d4 {
[%emt 0:00:22]} Nf6 {[%emt 0:00:32]} 2. c4 {[%emt 0:00:13]} e6 {[%emt 0:00:07]}
3. Nc3 {[%emt 0:00:45]} Bb4 {[%emt 0:01:01]} 4. e3 {[%emt 0:00:28]} O-O {
[%emt 0:00:10]} 5. Bd2 {[%emt 0:00:22]} c5 {[%emt 0:01:56]} 6. a3 {[%emt 0:00:
00] E46: Nimzo-Indian: Rubinstein: 4 e3 0-0 5 Ne2 without early Bd3.} Bxc3 {
[%emt 0:02:37]} 7. Bxc3 {[%emt 0:00:04]} Ne4 {[%emt 0:02:46]} 8. Ne2 {[%emt 0:
00:00] The position is equal.} b6 {[%emt 0:00:14]} 9. d5 {[%emt 0:02:06]} Bb7 {
[%emt 0:03:16]} ({Much less strong is} 9... Qh4 10. g3 Qh5 11. Bg2 exd5 12. Qc2
$14 (12. cxd5 f5 $14) (12. Qxd5 Qxd5 13. cxd5 f5 $14)) 10. f3 {[%emt 0:01:47]}
Nxc3 {[%emt 0:00:10]} 11. Nxc3 {[%emt 0:00:05]} exd5 {[%emt 0:00:18]} 12. cxd5
{[%emt 0:00:22]} d6 {[%emt 0:00:09]} 13. e4 {[%emt 0:02:08] [#]} Nd7 $1 $146 {
[%emt 0:10:19] A relevant novelty.} ({Predecessor:} 13... a6 14. Bd3 b5 15. Qd2
Nd7 16. O-O Qf6 17. Kh1 Ne5 18. Be2 g5 19. Nd1 Ng6 {0-1 (60) Anton Guijarro,D 
(2675)-Nakamura,H (2736) chess24.com INT 2020}) 14. Be2 {[%emt 0:00:00]} f5 {
[%emt 0:02:03]} 15. exf5 {[%emt 0:04:08]} Rxf5 {[%emt 0:08:31]} (15... Qg5 {
is interesting.} 16. g4 Qh4+ 17. Kd2 g6) 16. O-O {[%emt 0:00:58]} Qe7 {[%emt 0:
01:46]} 17. Qd2 {[%emt 0:06:42]} Raf8 {[%emt 0:11:11]} 18. f4 {[%emt 0:00:00]}
(18. Rae1 $5 {[%cal Rf3f4]}) 18... g5 {[%emt 0:05:24][%cal Rf5f4]} 19. fxg5 {
[%emt 0:05:57]} (19. g3 {seems wilder.} gxf4 20. Bg4 f3 21. Bxf5 Rxf5 22. Rae1)
19... Qxg5 {[%emt 0:05:19]} 20. Qxg5+ {[%emt 0:06:24]} Rxg5 {[%emt 0:00:00]}
21. Bf3 {[%emt 0:02:51]} Ba6 {[%emt 0:12:02]} 22. Rf2 {[%emt 0:04:08]} Ne5 {
[%emt 0:02:49]} 23. Be4 {[%emt 0:01:24][%cal Ye4h7]} Rxf2 {[%emt 0:01:55]} (
23... h5 {keeps more tension.} 24. a4 Rxf2 25. Kxf2 Kf8) 24. Kxf2 {[%emt 0:00:
00]} Ng4+ {[%emt 0:00:10]} 25. Kg1 {[%emt 0:00:41]} Bc4 {[%emt 0:04:21]} 26.
Rd1 {[%emt 0:07:41]} Bb3 {[%emt 0:03:41]} 27. Rd2 {[%emt 0:05:18]} Re5 {
[%emt 0:07:22]} 28. h3 {[%emt 0:02:11]} Nf6 {[%emt 0:00:21]} 29. Bf3 {[%emt 0:
00:00]} a6 {[%emt 0:00:05]} 30. a4 {[%emt 0:03:33]} (30. Kf2 $11) 30... Kf7 $17
{[%emt 0:03:20] Black is more active.} 31. Kf2 {[%emt 0:00:21]} Ke7 {[%emt 0:
00:00]} 32. Re2 {[%emt 0:00:44]} (32. g4 $15) 32... Rxe2+ {[%emt 0:03:32]} 33.
Bxe2 {[%emt 0:00:10]} Nxd5 {[%emt 0:00:06]} 34. Nxd5+ {[%emt 0:00:24]} Bxd5 {
[%emt 0:00:03]} 35. Bxa6 {[%emt 0:00:01] Endgame KB-KB} Bb3 {[%emt 0:00:10]}
36. Bb5 {[%emt 0:01:15]} Kf6 {[%emt 0:01:48]} 37. Ke3 {[%emt 0:00:00]} Ke5 {
[%emt 0:00:20]} 38. Kd3 {[%emt 0:02:06]} (38. h4 $17) 38... Kf4 $19 {[%emt 0:
05:25] Strongly threatening ...Bd5.} 39. Bc6 {[%emt 0:01:05]} Bf7 {[%emt 0:03:
01]} 40. Kc3 $2 {[%emt 0:00:29]} (40. Be4 h5 41. Bf3) 40... d5 {[%emt 0:00:01]
[%cal Yd6d5,Yd5d4,Yd4d3] Black is clearly winning.} 41. b4 {[%emt 0:13:34]}
cxb4+ {[%emt 0:21:21]} 42. Kxb4 {[%emt 0:04:02]} d4 {[%emt 0:00:00] [#] And
now ...d3 would win.} 43. Bf3 {[%emt 0:13:22]} d3 {[%emt 0:00:47] Weighted
Error Value: White=0.48/Black=0.06 (flawless)} 0-1

[Event "44th Chess Olympiad Open 2022"]
[Site "Chennai"]
[Date "2022.08.07"]
[Round "9.13"]
[White "Lopez Silva, Hugo"]
[Black "Zwardon, Vojtech"]
[Result "0-1"]
[WhiteElo "2403"]
[BlackElo "2503"]
[Annotator "TA"]
[PlyCount "82"]
[EventDate "2022.??.??"]
[TimeControl "60"]

{[%evp 27,82,19,41,43,44,29,26,26,60,22,51,43,134,123,175,185,250,235,312,309,
304,304,397,394,373,112,140,0,0,0,0,0,0,0,0,0,0,0,8,-248,-230,-251,-237,-271,
-272,-261,-257,-523,-496,-946,-975,-1186,-1358,-1283,-1198,-29989,-12846]} 1.
e4 {[%emt 0:00:04]} c5 {[%emt 0:00:01]} 2. Nf3 {[%emt 0:00:32]} d6 {[%emt 0:00:
00]} 3. d4 {[%emt 0:00:25]} cxd4 {[%emt 0:00:02]} 4. Nxd4 {[%emt 0:00:04]} Nf6
{[%emt 0:00:02]} 5. Nc3 {[%emt 0:00:07]} g6 {[%emt 0:00:02]} 6. Be3 {[%emt 0:
00:00]} Bg7 {[%emt 0:00:06]} 7. f3 {[%emt 0:00:02]} O-O {[%emt 0:00:22]} 8. Qd2
{[%emt 0:00:08]} Nc6 {[%emt 0:00:14]} 9. O-O-O {[%emt 0:01:21]} d5 {[%emt 0:00:
00]} 10. Qe1 {[%emt 0:23:07]} e5 {[%emt 0:01:14]} 11. Nxc6 {[%emt 0:00:03]}
bxc6 {[%emt 0:00:04]} 12. exd5 {[%emt 0:00:03]} Nxd5 {[%emt 0:00:07]} 13. Bc4 {
[%emt 0:00:33]} Be6 {[%emt 0:01:55]} 14. Ne4 {[%emt 0:00:24]} Qb8 {[%emt 0:00:
00]} 15. Bc5 {[%emt 0:03:43] B76: Sicilian Dragon: Yugoslav Attack, 9 g4 and 9
0-0-0.} Rd8 {[%emt 0:02:40]} 16. g4 {[%emt 0:16:50][%cal Yg2g4,Yg4g5]} Nf4 {
[%emt 0:09:58]} 17. Qc3 {[%emt 0:04:31] [#] White has an edge.} Qb7 $146 {
[%emt 0:20:41]} ({Predecessor:} 17... Rd5 18. Kb1 Rxc5 19. Nxc5 e4 20. Rd4 Qb6
21. Bxe6 Nxe6 22. Rb4 Bxc3 23. Rxb6 axb6 24. Nxe6 fxe6 25. bxc3 exf3 26. Kc1
Rxa2 27. Kd2 Ra4 28. h3 Rf4 29. Ke3 e5 {0-1 (29) Jeran,B (2199)-Plenca,J (2351)
Ljubljana 2013}) 18. g5 {[%emt 0:15:03]} Rab8 {[%emt 0:18:16]} 19. b3 {[%emt 0:
00:00]} Nd5 {[%emt 0:02:13]} (19... Bxc4 $14 20. Rxd8+ Rxd8 21. Qxc4 h5) 20.
Qa5 $16 {[%emt 0:01:12]} Bh3 {[%emt 0:05:10]} (20... h5 $16) 21. Rd2 $18 {
[%emt 0:05:40]} (21. Qxa7 Qxa7 22. Bxa7 Ra8 $11) 21... h6 {[%emt 0:05:18]} (
21... Rd7 {was worth a try.} 22. Rhd1 Qa8) 22. Rhd1 $1 {[%emt 0:06:58]} (22.
Qxa7 Qxa7 23. Bxa7 Ra8 $15) 22... hxg5 {[%emt 0:03:19]} 23. Ba6 $1 {[%emt 0:00:
00]} Qa8 {[%emt 0:02:26]} 24. c4 {[%emt 0:05:31]} (24. Nxg5 Bf5 $14) 24... g4 {
[%emt 0:02:52][%cal Yg4f3]} 25. cxd5 {[%emt 0:01:24]} cxd5 {[%emt 0:00:44] [#]}
26. Nf2 $2 {[%emt 0:03:09]} (26. Qc7 gxf3 27. Rxd5 (27. Bxa7 $2 Rbc8 $19) (27.
Qxa7 $2 Qxa7 28. Bxa7 Ra8 $19) (27. Ng5 Rd7 $11) 27... Rxd5 $16) (26. Bc4 $1
$18 {and the rest is easy.} Bh6 27. Nf6+ (27. Bxd5 Rxd5 28. Nf6+ Kh8 $11) 27...
Kg7 28. Bxd5 Rxd5 29. Nxd5) 26... Bg2 $16 {[%emt 0:02:08]} 27. Nxg4 {[%emt 0:
00:32]} (27. fxg4 $16 {And now g5 would win.} Bf3 28. Be2 Bxe2 29. Rxe2) 27...
Bxf3 $11 {[%emt 0:00:05]} 28. Rg1 {[%emt 0:00:03]} Bxg4 {[%emt 0:00:00]} 29.
Rxg4 {[%emt 0:00:00] Threatens to win with Rc2.} Bh6 {[%emt 0:00:00]} 30. Kb2 {
[%emt 0:01:18] Strongly threatening Rc2.} Bxd2 {[%emt 0:01:13]} 31. Qxd2 {
[%emt 0:00:02]} Qc6 $36 {[%emt 0:00:08][%csl Ya6,Yc5] Black is more active.}
32. Qa5 {[%emt 0:01:08]} Rd7 {[%emt 0:03:32][%cal Yd8d7,Yd7c7,Yc7c3,Yc3e3]
aiming for ...Rc7.} 33. Be2 $2 {[%emt 0:00:30] This bishop pair is nice.} (33.
Rg1 $11 {and White is okay.}) 33... Rc7 $19 {[%emt 0:00:32]} 34. Be3 {[%emt 0:
00:21]} Qc2+ $1 {[%emt 0:00:23]} ({Weaker is} 34... d4 35. Bh6 $17) 35. Ka3 {
[%emt 0:00:01][%cal Ya5d5]} Rc3 {[%emt 0:02:24][%cal Rb8b3]} 36. Rxg6+ {
[%emt 0:00:58] [#]} Kh7 $1 {[%emt 0:00:00][%cal Rc3b3,Yg8h7,Yh7g7,Yg7h6] The
board is on fire.} ({Stronger than} 36... fxg6 37. Qxd5+ Kh7 38. Qf7+ Kh8 39.
Qf6+ Kh7 40. Qf7+ Kh8 41. Qf6+ Kh7 42. Qf7+ $11) ({Worse is} 36... Qxg6 37.
Qxc3 d4 38. Qc7 $15) 37. Rh6+ $2 {[%emt 0:00:39] [#]} (37. Qxd5 Qxg6 38. Qxe5)
37... Kg7 $1 {[%emt 0:00:02][%cal Rb8b3]} 38. Qxd5 {[%emt 0:00:31]} (38. Rh7+
$142 Kxh7 39. Qxd5) 38... Rxe3 {[%emt 0:00:11]} 39. Bc4 {[%emt 0:00:31]} Kxh6 {
[%emt 0:00:59]} 40. Qxf7 {[%emt 0:00:24]} Qg6 {[%emt 0:00:51] ( -> ...Qd6+)}
41. Qxa7 {[%emt 0:30:18]} Qd6+ {[%emt 0:30:01] Black used his chance. Weighted
Error Value: White=0.82/ Black=0.15 (very precise)} 0-1